{"text_format":"1","workbook":"xlsx","n_sheets":3,"sheets":["sheet1","システム管理","システム管理2"],"not_rendered":{"charts":0,"images":0,"macros":1,"external_links":0,"defined_names":1,"comments":0,"pivot_tables":0},"unopened":[],"bounds":{"document_bytes":16777216,"sheet_cells":100000,"rows_first":2000,"rows_last":500,"rows_between":2000,"halvings":0,"cell_chars":16384,"cell_head_chars":4096},"cells_cut":0,"cells_raw":0,"read":"whole","date_system":"1900"}

{"sheet":"sheet1","index":0,"n_rows":78,"n_cols":57,"rows_kept":78,"cut":false,"hidden":false,"merged":[[70,1,70,17],[73,1,73,17],[60,1,60,17],[44,1,44,7],[44,10,44,11],[60,18,60,19],[63,1,63,17],[66,1,66,17],[57,11,57,14],[57,15,57,17],[48,1,48,7],[48,10,48,11],[48,14,48,16],[49,1,49,7],[49,10,49,11],[53,1,53,3],[53,4,53,7],[57,1,57,3],[57,5,57,7],[57,8,57,10],[55,39,55,41],[56,1,56,3],[56,4,56,17],[36,1,36,3],[36,4,36,17],[39,1,39,3],[39,4,39,5],[39,18,40,19],[46,10,46,11],[46,14,46,16],[47,1,47,7],[47,10,47,11],[47,14,47,16],[52,18,54,19],[46,1,46,7],[35,18,36,19],[44,14,44,16],[25,38,25,43],[5,0,5,1],[5,14,5,17],[7,1,7,17],[8,1,8,3],[8,7,8,8],[8,10,8,13],[13,1,13,17],[16,1,16,17],[19,1,19,17],[22,1,22,17],[25,1,25,17],[5,18,5,19],[40,1,40,3],[40,4,40,17],[49,14,49,16],[43,13,43,17],[44,18,49,19],[0,10,0,11],[45,10,45,11],[45,14,45,16],[28,1,28,17],[45,1,45,7],[35,1,35,3],[31,1,31,3],[32,1,32,3],[31,4,31,17],[32,4,32,17],[35,4,35,7],[43,1,43,7],[43,9,43,12]]}
[null,null,null,null,null,null,null,null,"西暦",null,null,null,null,"年",null,"月",null,"日"]
[]
[null,"面 談 メ モ "]
[null,"　〔面談メモ専用メールアドレスmendan@scholarship.or.jpに当Excelファイルを添付し",null,null,null,null,null,null,null,null,null,null,null,null,null,null,null,null,null,null,null,null,null,null,null,null,null,null,null,null,null,null,null,null,null,null,null,null,"入力方法"]
[null,"　　提出してください。メールの件名は「面談メモ　あなたの大学名　あなたの氏名」としてください。〕",null,null,null,null,null,null,null,null,null,null,null,null,null,null,null,null,null,null,null,null,null,null,null,null,null,null,null,null,null,null,null,null,null,null,null,null,"手入力"]
[null,null,"大学",null,null,"学部",null,null,"学科",null,null,"年",null,"氏名",null,null,null,null,"注意：大学名はプルダウンで選択してください。",null,{"$f":"IF(ISBLANK(A6),\"●大学名を入力して下さい\",IF(ISBLANK(E6),\"●学部を入力してください\",IF(ISBLANK(H6),\"●学科を入力して下さい\",IF(NOT(ISNUMBER(K6)),\"●学年を入力して下さい\",IF(ISBLANK(#REF!),\"●氏名を入力して下さい\",\"OK\")))))","v":"●大学名を入力して下さい"},null,null,null,null,null,null,null,null,null,null,null,null,null,null,null,null,null,"面談メモから式で参照"]
["①","今期の履修単位数、前期末までの取得済み単位数を記入して下さい。",null,null,null,null,null,null,null,null,null,null,null,null,null,null,null,null,null,null,null,null,null,null,null,null,null,null,null,null,null,null,null,null,null,null,null,null,"ドロップダウンメニュー"]
[null,"（注：以下への入力で改行する場合、Windows を使用の場合は \"Alt + Enter\" を、Mackintosh を使用の場合はCommand + Option + Return キーを押してください。 ）",null,null,null,null,null,null,null,null,null,null,null,null,null,null,null,null,null,null,null,"入力文字数設定行数",null,"元の高さ","１行あたり高さ","１行あたり文字数","あふれ文字数","追加行数","追加高さ","結果高さ",null,"保管するフォルダー名","フォルダー名参照テーブル"]
[null,"今期履修単位数：",null,null,null,null,null,"履修済単位数：",null,null,null,null,null,null,null,null,null,null,null,null,null,null,null,null,null,null,null,null,null,22.25]
[null,null,null,null,null,null,null,null,null,null,null,null,null,null,null,null,null,null,null,null,null,null,null,null,null,null,null,null,null,14.25,null,"01　青山学院大学","青山学院大学",{"$f":"SUBSTITUTE(AI10,\"大学\",\"\")","v":"01　青山学院"},"01　青山学院大学",null,1]
[null,null,null,null,null,null,null,null,null,null,null,null,null,null,null,null,null,null,null,null,null,null,null,null,null,null,null,null,null,14.25,null,null,"岩手大学",{"$f":"SUBSTITUTE(AI11,\"大学\",\"\")","v":"02　岩手"},"02　岩手大学",null,2]
["②","ゼミナール・研究室（所属または希望のゼミ・研究室が決まっている場合記入して下さい）",null,null,null,null,null,null,null,null,null,null,null,null,null,null,null,null,null,null,null,null,null,null,null,null,null,null,null,14.25,null,null,"大阪大学","03　大阪","03　大阪大学",null,3]
[null,"　　ゼミ・研究室名、指導教官名",null,null,null,null,null,null,null,null,null,null,null,null,null,null,null,null,null,null,null,null,null,null,null,null,null,null,null,14.25,null,null,"岡山大学","04　岡山","04　岡山大学",null,4]
[null,null,null,null,null,null,null,null,null,null,null,null,null,null,null,null,null,null,null,null,null,{"$f":"LEN(B14)","v":0},1,{"$f":"+W14*Y14","v":14.25},14.25,42,{"$f":"V14-Z14*W14","v":-42},{"$f":"ROUNDUP(IF((+AA14/Z14)<=0,0,AA14/Z14),)","v":0},{"$f":"ROUNDUP(+Y14*AB14,)","v":0},{"$f":"+X14+AC14+5","v":19.25},null,null,"小樽商科大学","05　小樽商科","05　小樽商科大学",null,5]
[null,null,null,null,null,null,null,null,null,null,null,null,null,null,null,null,null,null,null,null,null,"　",null,null,null,null,null,null,null,8,null,null,"香川大学","06　香川","06　香川大学",null,6]
[null,"　　テーマ",null,null,null,null,null,null,null,null,null,null,null,null,null,null,null,null,null,null,null,"　",null,null,null,null,null,null,null,14.25,null,null,"学習院大学","07　学習院","07　学習院大学",null,7]
[null,null,null,null,null,null,null,null,null,null,null,null,null,null,null,null,null,null,null,null,null,{"$f":"LEN(B17)","v":0},2,{"$f":"+W17*Y17","v":28.5},14.25,42,{"$f":"V17-Z17*W17","v":-84},{"$f":"ROUNDUP(IF((+AA17/Z17)<=0,0,AA17/Z17),)","v":0},{"$f":"ROUNDUP(+Y17*AB17,)","v":0},{"$f":"+X17+AC17+8","v":36.5},null,null,"鹿児島大学","08　鹿児島","08　鹿児島大学",null,8]
[null,null,null,null,null,null,null,null,null,null,null,null,null,null,null,null,null,null,null,null,null,null,null,null,null,null,null,null,null,14.25,null,null,"金沢大学","09　金沢","09　金沢大学",null,9,null,"部活"]
["③","入っている部、クラブ、研究会、その活動状況、目標としていることなど。",null,null,null,null,null,null,null,null,null,null,null,null,null,null,null,null,null,null,null,null,null,null,null,null,null,null,null,14.25,null,null,"関西大学","10　関西","10　関西大学",null,10,null,"主たる活動を記入","分類"]
[null,null,null,null,null,null,null,null,null,null,null,null,null,null,null,null,null,null,null,null,null,{"$f":"LEN(B20)","v":0},2,{"$f":"+W20*Y20","v":28.5},14.25,42,{"$f":"V20-Z20*W20","v":-84},{"$f":"ROUNDUP(IF((+AA20/Z20)<=0,0,AA20/Z20),)","v":0},{"$f":"ROUNDUP(+Y20*AB20,)","v":0},{"$f":"+X20+AC20+8","v":36.5},null,null,"関西学院大学","11　関西学院","11　関西学院大学",null,11,null,null,null,null,null,null,null,"0.なし","1.体育会","2.サークル","3.勉強サークル"]
[null,null,null,null,null,null,null,null,null,null,null,null,null,null,null,null,null,null,null,null,null,null,null,null,null,null,null,null,null,5,null,null,"九州大学","12　九州","12　九州大学",null,12]
[null,"あなたの役割",null,null,null,null,null,null,null,null,null,null,null,null,null,null,null,null,null,null,null,null,null,null,null,null,null,null,null,14.25,null,null,"京都大学","13　京都","13　京都大学",null,13]
[null,null,null,null,null,null,null,null,null,null,null,null,null,null,null,null,null,null,null,null,null,{"$f":"LEN(B23)","v":0},1,{"$f":"+W23*Y23","v":14.25},14.25,42,{"$f":"V23-Z23*W23","v":-42},{"$f":"ROUNDUP(IF((+AA23/Z23)<=0,0,AA23/Z23),)","v":0},{"$f":"ROUNDUP(+Y23*AB23,)","v":0},{"$f":"+X23+AC23+5","v":19.25},null,null,"慶應義塾大学","14　慶應義塾","14　慶應義塾大学",null,14]
[null,null,null,null,null,null,null,null,null,null,null,null,null,null,null,null,null,null,null,null,null,null,null,null,null,null,null,null,null,14.25,null,null,"工学院大学","15　工学院","15　工学院大学",null,15]
["④","あなたの座右の銘・生活信条について記述して下さい。",null,null,null,null,null,null,null,null,null,null,null,null,null,null,null,null,null,null,null,null,null,null,null,null,null,null,null,14.25,null,null,"神戸大学","16　神戸","16　神戸大学",null,16,null,"座右の銘"]
[null,null,null,null,null,null,null,null,null,null,null,null,null,null,null,null,null,null,null,null,null,{"$f":"LEN(B26)","v":0},2,{"$f":"+W26*Y26","v":28.5},14.25,42,{"$f":"V26-Z26*W26","v":-84},{"$f":"ROUNDUP(IF((+AA26/Z26)<=0,0,AA26/Z26),)","v":0},{"$f":"ROUNDUP(+Y26*AB26,)","v":0},{"$f":"+X26+AC26+8","v":36.5},null,null,"国際大学","17　国際","17　国際大学",null,17]
[null,null,null,null,null,null,null,null,null,null,null,null,null,null,null,null,null,null,null,null,null,null,null,null,null,null,null,null,null,14.25,null,null,"国際基督教大学","18　国際基督教","18　国際基督教大学",null,18]
["⑤","卒業後に就職したい業種、企業など （現在の志望でよい）。",null,null,null,null,null,null,null,null,null,null,null,null,null,null,null,null,null,null,null,null,null,null,null,null,null,null,null,14.25,null,null,"静岡大学","19　静岡","19　静岡大学",null,19,null,"進路（2つまで記入）"]
[null,null,null,null,null,null,null,null,null,null,null,null,null,null,null,null,null,null,null,null,null,{"$f":"LEN(B29)","v":0},2,{"$f":"+W29*Y29","v":28.5},14.25,42,{"$f":"V29-Z29*W29","v":-84},{"$f":"ROUNDUP(IF((+AA29/Z29)<=0,0,AA29/Z29),)","v":0},{"$f":"ROUNDUP(+Y29*AB29,)","v":0},{"$f":"+X29+AC29+8","v":36.5},null,null,"上智大学","20　上智","20　上智大学",null,20]
[null,null,null,null,null,null,null,null,null,null,null,null,null,null,null,null,null,null,null,null,null,null,null,null,null,null,null,null,null,14.25,null,null,"信州大学","21　信州","21　信州大学",null,21]
["⑥","取得を目指して勉強中の資格、興味を持っている資格はありますか。",null,null,null,null,null,null,null,null,null,null,null,null,null,null,null,null,null,null,null,null,null,null,null,null,null,null,null,14.25,null,null,"成蹊大学","22　成蹊","22　成蹊大学",null,22,null,"資格（2つまで記入）"]
[null,"勉強中の資格：",null,null,null,null,null,null,null,null,null,null,null,null,null,null,null,null,null,{"$f":"+IF(D32=\"\",\"\",D32)","v":""},null,null,null,null,null,null,null,null,null,22.25,null,null,"西南学院大学","23　西南学院","23　西南学院大学",null,23]
[null,"興味のある資格：",null,null,null,null,null,null,null,null,null,null,null,null,null,null,null,null,null,null,null,null,null,null,null,null,null,null,null,22.25,null,null,"創価大学","24　創価","24　創価大学",null,24]
[null,null,null,null,null,null,null,null,null,null,null,null,null,null,null,null,null,null,null,null,null,null,null,null,null,null,null,null,null,14.25,null,null,"千葉大学","25　千葉","25　千葉大学",null,25]
["⑦","留学する予定はありますか。（具体的な計画がある場合、時期、期間、留学先について記載してください。）",null,null,null,null,null,null,null,null,null,null,null,null,null,null,null,null,null,null,null,null,null,null,null,null,null,null,null,14.25,null,null,"中央大学","26　中央","26　中央大学",null,26,null,"留学予定あり/なし","国名"]
[null,"留学予定：",null,null,"0.留学予定なし",null,null,null,null,null,null,null,null,null,null,null,null,null,"留学予定はプルダウンメニューから選択",null,null,null,null,null,null,null,null,null,null,22.25,null,null,"筑波大学","27　筑波","27　筑波大学",null,27,null,null,null,null,null,null,null,"0.留学予定なし","1.留学予定あり（交換留学）","2.留学予定あり（私費留学）","3.未定"]
[null,"具体的な計画：\n（わかる範囲で）",null,null,"時期（　　　　年　　月～　　 　　年　　月）\n留学先（国：　　　　　　　　　　　大学：　　　　　　　　　　　　　　　　　　　　　）",null,null,null,null,null,null,null,null,null,null,null,null,null,null,null,null,{"$f":"LEN(B37)","v":16},2,{"$f":"+W37*Y37","v":28.5},14.25,42,{"$f":"V37-Z37*W37","v":-68},{"$f":"ROUNDUP(IF((+AA37/Z37)<=0,0,AA37/Z37),)","v":0},{"$f":"ROUNDUP(+Y37*AB37,)","v":0},{"$f":"+X37+AC37+8","v":36.5},null,null,"東京大学","28　東京","28　東京大学",null,28,null,{"$f":"+E36","v":"0.留学予定なし"},null,null,null,null,null,"1.米国","2.英国","3.フランス","4.ドイツ","5.イタリア","6.その他欧州","7.カナダ","8.中国","9.韓国","10.台湾","11.その他アジア","12.その他","13.未定"]
[null,null,null,null,null,null,null,null,null,null,null,null,null,null,null,null,null,null,null,null,null,null,null,null,null,null,null,null,null,14.25,null,null,"東京外国語大学","29　東京外国語","29　東京外国語大学",null,29]
["⑧","大学院に進学する予定はありますか。進学希望大学、学科は決まっていますか。",null,null,null,null,null,null,null,null,null,null,null,null,null,null,null,null,null,null,null,null,null,null,null,null,null,null,null,14.25,null,null,"東京工業大学","30　東京工業","30　東京工業大学",null,30,null,"大学院進学？"]
[null,"進学予定：",null,null,"0.進学予定なし",null,null,null,null,null,null,null,null,null,null,null,null,null,"進学予定はプルダウンメニューから選択",null,null,null,null,null,null,null,null,null,null,22.25,null,null,"東京理科大学","31　東京理科","31　東京理科大学",null,31,null,null,null,null,null,null,null,"0.進学予定なし","1.進学予定あり","2.未定"]
[null,"希望大学、学科：",null,null,null,null,null,null,null,null,null,null,null,null,null,null,null,null,null,null,null,{"$f":"LEN(B41)","v":8},1,{"$f":"+W41*Y41","v":14.25},14.25,42,{"$f":"V41-Z41*W41","v":-34},{"$f":"ROUNDUP(IF((+AA41/Z41)<=0,0,AA41/Z41),)","v":0},{"$f":"ROUNDUP(+Y41*AB41,)","v":0},{"$f":"+X41+AC41+8","v":22.25},null,null,"同志社大学","32　同志社","32　同志社大学",null,32,null,{"$f":"+E40","v":"0.進学予定なし"},"←入力値参照"]
[null,null,null,null,null,null,null,null,null,null,null,null,null,null,null,null,null,null,null,null,null,null,null,null,null,null,null,null,null,5,null,null,"東北大学","33　東北","33　東北大学",null,33]
["⑨","併給している奨学金、学費免除があれば、すべて記入してください。",null,null,null,null,null,null,null,null,null,null,null,null,null,null,null,null,null,null,null,null,null,null,null,null,null,null,null,null,null,null,"獨協大学","34　獨協","34　獨協大学",null,34]
[null,"奨学金名称",null,null,null,null,null,null,null,"貸与/給付",null,null,null,"金額（万円/年）",null,null,null,null,null,null,null,null,null,null,null,null,null,null,null,null,null,null,"長崎大学","35　長崎","35　長崎大学",null,35]
[null,null,null,null,null,null,null,null,null,null,null,null,null,null,null,null,null,null,"奨学金名称、貸与/給付はプルダウンメニューから選択。奨学金名称はメニュー以外に手入力も可。",null,null,null,null,null,null,null,null,null,null,19.25,null,null,"名古屋大学","36　名古屋","36　名古屋大学",null,36]
[null,null,null,null,null,null,null,null,null,null,null,null,null,null,null,null,null,null,null,null,null,null,null,null,null,null,null,null,null,19.25,null,null,"南山大学","37　南山","37　南山大学",null,37,null,null,null,null,null,null,null,"日本学生支援機構(給付)","日本学生支援機構(授業料減免)","日本学生支援機構１種","日本学生支援機構２種","学費免除（前期）","学費免除（後期）"]
[null,null,null,null,null,null,null,null,null,null,null,null,null,null,null,null,null,null,null,null,null,null,null,null,null,null,null,null,null,19.25,null,null,"一橋大学","38　一橋","38　一橋大学",null,38,null,null,null,null,null,null,null,"貸与","給付"]
[null,null,null,null,null,null,null,null,null,null,null,null,null,null,null,null,null,null,null,null,null,null,null,null,null,null,null,null,null,19.25,null,null,"広島大学","39　広島","39　広島大学",null,39]
[null,null,null,null,null,null,null,null,null,null,null,null,null,null,null,null,null,null,null,null,null,null,null,null,null,null,null,null,null,19.25,null,null,"福島大学","40　福島","40　福島大学",null,40]
[null,null,null,null,null,null,null,null,null,null,null,null,null,null,null,null,null,null,null,null,null,null,null,null,null,null,null,null,null,19.25,null,null,"法政大学","41　法政","41　法政大学",null,41]
[null,null,null,null,null,null,null,null,null,null,null,null,null,null,null,null,null,null,null,null,null,null,null,null,null,null,null,null,null,4,null,null,"北海道大学","42　北海道","42　北海道大学",null,42]
[null,null,null,null,null,null,null,null,null,null,null,null,null,null,null,null,null,null,null,null,null,null,null,null,null,null,null,null,null,null,null,null,"明治大学","43　明治","43　明治大学",null,43]
["⑩","奨学金は主に何に使用していますか。",null,null,null,null,null,null,null,null,null,null,null,null,null,null,null,null,"奨学金使途はプルダウンメニューから選択。（３つまで選択可）",null,null,null,null,null,null,null,null,null,null,14.25,null,null,"山梨大学","44　山梨","44　山梨大学",null,44,null,"奨学金用途？(複数回答可）"]
[null,"奨学金使途：",null,null,null,null,null,null,null,null,null,null,null,null,null,null,null,null,null,null,null,{"$f":"LEN(B54)","v":6},1,{"$f":"+W54*Y54","v":14.25},14.25,42,{"$f":"V54-Z54*W54","v":-36},{"$f":"ROUNDUP(IF((+AA54/Z54)<=0,0,AA54/Z54),)","v":0},{"$f":"ROUNDUP(+Y54*AB54,)","v":0},{"$f":"+X54+AC54+8","v":22.25},null,null,"横浜国立大学","45　横浜国立","45　横浜国立大学",null,45,null,{"$f":"+E54","v":0},"←入力値参照",null,null,null,null,"1.授業料","2.生活費","3.部活費","4.留学費用","5.書籍購入","6.貯蓄","7.旅行","8.その他"]
[null,null,null,null,null,null,null,null,null,null,null,null,null,null,null,null,null,null,null,null,null,null,null,null,null,null,null,null,null,14.25,null,null,"立教大学","46　立教","46　立教大学",null,46,null,"アルバイト職種","週回数","週時間","月収",null,null,{"$f":"$E$54&\"　\"&AS54","v":"　1.授業料"},{"$f":"$E$54&\"　\"&AT54","v":"　2.生活費"},"　3.部活費","　4.留学費用","　5.書籍購入","　6.貯蓄","　7.旅行","　8.その他"]
["⑪","何かアルバイトをしていますか。（複数ある場合は職種は全てを、回数、時間、月収は合計を記載して下さい。）",null,null,null,null,null,null,null,null,null,null,null,null,null,null,null,null,null,null,null,null,null,null,null,null,null,null,null,14.25,null,null,"立命館大学","47　立命館","47　立命館大学",null,47,null,"（複数回答可）","（複数の場合は合計）"]
[null,"アルバイト職種：",null,null,null,null,null,null,null,null,null,null,null,null,null,null,null,null,null,null,null,null,null,null,null,null,null,null,null,22.25,null,null,"早稲田大学","48　早稲田","48　早稲田大学",null,48]
[null,"一週間での回数：",null,null,null,"一週あたりの時間：",null,null,null,null,null,"平均的な月収：",null,null,null,null,null,null,"（万円）",null,null,{"$f":"LEN(E58)","v":0},1,{"$f":"+W58*Y58","v":14.25},14.25,42,{"$f":"V58-Z58*W58","v":-42},{"$f":"ROUNDUP(IF((+AA58/Z58)<=0,0,AA58/Z58),)","v":0},{"$f":"ROUNDUP(+Y58*AB58,)","v":0},{"$f":"+X58+AC58+8","v":22.25},null,null,null,null,null,null,null,null,null,{"$f":"+E58","v":0},{"$f":"+I58","v":0},{"$f":"+P58","v":0},null,null,"1.塾講師","2.家庭教師","3.飲食店員","4.店員","5.TA","6.その他","7.なし"]
[null,null,null,null,null,null,null,null,null,null,null,null,null,null,null,null,null,null,null,null,null,null,null,null,null,null,null,null,null,14.25,null,null,null,null,null,null,null,null,null,null,null,null,null,null,{"$f":"$AM$58&\"　\"&AS58","v":"　1.塾講師"},"　2.家庭教師","　3.飲食店員","　4.店員","　5.TA","　6.その他","　7.なし"]
["⑫","当財団の出捐者である三菱UFJ信託銀行についてご存知の事を記載して下さい。",null,null,null,null,null,null,null,null,null,null,null,null,null,null,null,null,null,null,null,null,null,null,null,null,null,null,null,14.25,null,null,null,null,null,null,null,null,"MUTBについて？"]
[null,null,null,null,null,null,null,null,null,null,null,null,null,null,null,null,null,null,"全く知らない場合は同行のHPなどをご覧ください。",null,null,{"$f":"LEN(B61)","v":0},4,{"$f":"+W61*Y61","v":57},14.25,42,{"$f":"V61-Z61*W61","v":-168},{"$f":"ROUNDUP(IF((+AA61/Z61)<=0,0,AA61/Z61),)","v":0},{"$f":"ROUNDUP(+Y61*AB61,)","v":0},{"$f":"+X61+AC61+8","v":65},null,null,null,null,null,null,null,null,null,null,null,null,null,null,"0.無回答","1.BOTMと誤認","2.少し知っている","3.知っている","4.よく知っている"]
[null,null,null,null,null,null,null,null,null,null,null,null,null,null,null,null,null,null,null,null,null,null,null,null,null,null,null,null,null,14.25]
["⑬","最近、気になるニュースは何ですか。それはなぜですか。",null,null,null,null,null,null,null,null,null,null,null,null,null,null,null,null,null,null,null,null,null,null,null,null,null,null,null,14.25,null,null,null,null,null,null,null,null,"気になるニュース？"]
[null,null,null,null,null,null,null,null,null,null,null,null,null,null,null,null,null,null,null,null,null,{"$f":"LEN(B64)","v":0},4,{"$f":"+W64*Y64","v":57},14.25,42,{"$f":"V64-Z64*W64","v":-168},{"$f":"ROUNDUP(IF((+AA64/Z64)<=0,0,AA64/Z64),)","v":0},{"$f":"ROUNDUP(+Y64*AB64,)","v":0},{"$f":"+X64+AC64+8","v":65},null,null,null,null,null,null,null,null,"3.社会",null,null,null,null,null,"1.政治","2.経済","3.社会","4.国際","5.安全保障","6.自然災害","7.スポーツ","8.芸術・文化","9","10.その他"]
[null,null,null,null,null,null,null,null,null,null,null,null,null,null,null,null,null,null,null,null,null,null,null,null,null,null,null,null,null,14.25]
["⑭","趣味や余暇の過ごし方についてお書き下さい。",null,null,null,null,null,null,null,null,null,null,null,null,null,null,null,null,null,null,null,null,null,null,null,null,null,null,null,14.25]
[null,null,null,null,null,null,null,null,null,null,null,null,null,null,null,null,null,null,null,null,null,{"$f":"LEN(B67)","v":0},2,{"$f":"+W67*Y67","v":28.5},14.25,42,{"$f":"V67-Z67*W67","v":-84},{"$f":"ROUNDUP(IF((+AA67/Z67)<=0,0,AA67/Z67),)","v":0},{"$f":"ROUNDUP(+Y67*AB67,)","v":0},{"$f":"+X67+AC67+8","v":36.5}]
[null,null,null,null,null,null,null,null,null,null,null,null,null,null,null,null,null,null,null,null,null,null,null,null,null,null,null,null,null,14.25]
["⑮","近況報告",null,null,null,null,null,null,null,null,null,null,null,null,null,null,null,null,null,null,null,null,null,null,null,null,null,null,null,14.25]
[null,"近況又は意見、抱負等ご自由にお書き下さい。",null,null,null,null,null,null,null,null,null,null,null,null,null,null,null,null,null,null,null,null,null,null,null,null,null,null,null,14.25]
[null,null,null,null,null,null,null,null,null,null,null,null,null,null,null,null,null,null,null,null,null,{"$f":"LEN(B71)","v":0},13,{"$f":"+W71*Y71","v":185.25},14.25,42,{"$f":"V71-Z71*W71","v":-546},{"$f":"ROUNDUP(IF((+AA71/Z71)<=0,0,AA71/Z71),)","v":0},{"$f":"ROUNDUP(+Y71*AB71,)","v":0},{"$f":"+X71+AC71+10","v":195.25}]
[null,null,null,null,null,null,null,null,null,null,null,null,null,null,null,null,null,null,null,null,null,null,null,null,null,null,null,null,null,14.25]
["⑯","何か質問、相談したいことがあればお書き下さい。",null,null,null,null,null,null,null,null,null,null,null,null,null,null,null,null,null,null,null,null,null,null,null,null,null,null,null,14.25]
[null,null,null,null,null,null,null,null,null,null,null,null,null,null,null,null,null,null,null,null,null,{"$f":"LEN(B74)","v":0},5,{"$f":"+W74*Y74","v":71.25},14.25,42,{"$f":"V74-Z74*W74","v":-210},{"$f":"ROUNDUP(IF((+AA74/Z74)<=0,0,AA74/Z74),)","v":0},{"$f":"ROUNDUP(+Y74*AB74,)","v":0},{"$f":"+X74+AC74+10","v":81.25}]
[null,null,null,null,null,null,null,null,null,null,null,null,null,null,null,null,null,"以上"]
[]
[null,"SMILE入力文"]
[null,{"$f":"\"先期までの履修単位数は\"&K9&\"、今期履修単位数は\"&E9&\"。学業状況は・・・・・・・・。\"&\n\"卒業後は\"&B29&\"を希望。\"&+RIGHT(E40,LEN(E40)-2)&\"。\"&\n+IF(LEFT(E40,1)=\"1\",E41&\"を希望。\",\"\")&\n\n+IF(LEFT(E36,1)=\"0\",\"留学予定なし。\",\"\")&\n+IF(LEFT(E36,1)=\"1\",+RIGHT(E36,LEN(E36)-2)&\"、\"&+CLEAN(TRIM(E37)&\"。\"),\"\")&\n+IF(LEFT(E36,1)=\"2\",+RIGHT(E36,LEN(E36)-2)&\"、\"&+CLEAN(TRIM(E37)&\"。\"),\"\")&\n+IF(LEFT(E36,1)=\"3\",\"留学は未定。\",\"\")&\n\n+IF(E32=\"\",\"\",\"勉強中の資格は\"&E32)&\"。\"&\n\n\"サークル活動は\"&B20&\"。\"&\n\n+IF(OR(E58=0,E58=\"\"),\"アルバイトなし。\",\"アルバイトは\"&E57&\"。週\"&E58&\"回、一回\"&I58&\"時間、月収\"&P58&\"万円。\")","v":"先期までの履修単位数は、今期履修単位数は。学業状況は・・・・・・・・。卒業後はを希望。進学予定なし。留学予定なし。。サークル活動は。アルバイトなし。"}]

{"sheet":"システム管理","index":1,"n_rows":4,"n_cols":3,"rows_kept":4,"cut":false,"hidden":true,"merged":[]}
["ディレクトリ名：\n（事前に手作成しておく）","\\\\Ridoc-srv\\マイドキュメント\\１１．面談\\面談2024\\面談資料　大学別(2024)"]
["大学フォルダ名：",{"$f":"+sheet1!A6 & \"大学\"","v":"大学"}]
["bookファイル名：",{"$f":"B2&\"　面談メモ（2024)\"","v":"大学　面談メモ（2024)"},"保存するEXCELファイル名は大学の後に”面談メモ（H29)を連結した名前。年度により更新する。"]
["シート名",{"$f":"+sheet1!O6","v":0},"シート名は氏名"]

{"sheet":"システム管理2","index":2,"n_rows":2,"n_cols":44,"rows_kept":2,"cut":false,"hidden":true,"merged":[[2,2,2,7]]}
["ディレクトリ名：\n（事前に手作成しておく）","\\\\Ridoc-srv\\マイドキュメント\\１１．面談\\面談2024",null,null,null,null,null,null,"大学","学部","学年","氏名","部活・サークル","部活・サークル分類","生活信条","進路志望1","進路志望2","留学希望","進学希望","取得希望資格1","取得希望資格2","MUTB","奨学金使途","気になるニュース","アルバイト","アルバイト週回数","アルバイト1回時間","アルバイト月収（万円/月）","留学希望国","併給奨学金名１","併給貸与給付1","併給奨学金金額1","併給奨学金名2","併給貸与給付2","併給金額2","併給奨学金名3","併給貸与給付3","併給金額3","併給奨学金名4","併給貸与給付4","併給金額4","併給奨学金名5","併給貸与給付5","併給金額5"]
["EXCELファイル名：","★面談メモデータ2024",null,null,null,null,null,"書き込みデータ",{"$f":"+sheet1!A6","v":0},{"$f":"+sheet1!E6","v":0},{"$f":"+sheet1!K6","v":0},{"$f":"+sheet1!O6","v":0},{"$f":"+sheet1!AM20","v":0},{"$f":"+sheet1!AN20","v":0},{"$f":"+sheet1!AM26","v":0},{"$f":"+sheet1!AM29","v":0},{"$f":"+sheet1!AN29","v":0},{"$f":"+sheet1!AM37","v":"0.留学予定なし"},{"$f":"+sheet1!AM41","v":"0.進学予定なし"},{"$f":"+sheet1!AM33","v":0},{"$f":"+sheet1!AN33","v":0},{"$f":"+sheet1!AM61","v":0},{"$f":"RIGHT(sheet1!AM54,LEN(sheet1!AM54)-1)","v":""},{"$f":"+sheet1!AM64 & \"　\"&+sheet1!AN64","v":"3.社会　"},{"$f":"RIGHT(sheet1!AM58,LEN(sheet1!AM58)-1)","v":{"$error":"#VALUE!"}},{"$f":"+sheet1!AN58","v":0},{"$f":"+sheet1!AO58","v":0},{"$f":"+sheet1!AP58","v":0},{"$f":"+sheet1!AN37","v":0},{"$f":"+sheet1!B46","v":0},{"$f":"+sheet1!K46","v":0},{"$f":"+sheet1!O46","v":0},{"$f":"+sheet1!B47","v":0},{"$f":"+sheet1!K47","v":0},{"$f":"+sheet1!O47","v":0},{"$f":"+sheet1!B48","v":0},{"$f":"+sheet1!K48","v":0},{"$f":"+sheet1!O48","v":0},{"$f":"+sheet1!B49","v":0},{"$f":"+sheet1!K49","v":0},{"$f":"+sheet1!O49","v":0},{"$f":"+sheet1!B50","v":0},{"$f":"+sheet1!K50","v":0},{"$f":"+sheet1!O50","v":0}]